bitfinex-derivatives/quotes_SOLF0:USTF0_20250312
["timestamp","ask_amount","ask_price","bid_price","bid_amount"]
[1741818167522,0.05452278,125.99,125.95,30.22]
[1741818168221,0.05452278,125.99,125.96,18.35461802]
[1741818168524,0.05452278,125.99,125.96,20.55111802]
[1741818168716,0.05452278,125.99,125.98,7.9391]
[1741818168916,0.05452278,125.99,125.98,38.1591]
[1741818170917,218.94317024,126.17,125.98,264.86923604]
[1741818171111,2.0379,126.13,126.05,18.35461802]
[1741818171315,18.35461802,126.12,126.06,30.22]
[1741818171924,26.28521802,126.12,126.06,30.22]
[1741818172125,0.05107482,126.1,126.08,0.05452278]
[1741818172627,0.05107482,126.1,126.09,7.9322]
[1741818172819,0.05107482,126.1,126.08,0.05452278]
[1741818173225,0.05107482,126.1,126.09,30.22]
[1741818176628,0.05107482,126.1,126.08,0.05452278]
[1741818180229,0.05107482,126.1,126.08,7.98722278]
[1741818181023,0.05107482,126.1,126.08,0.05452278]
[1741818181227,0.05107482,126.1,126.09,7.9322]
[1741818181629,0.05107482,126.1,126.08,0.05452278]
[1741818182324,0.05107482,126.1,126.09,7.9322]
[1741818182736,0.05107482,126.1,126.08,0.05452278]
[1741818182931,0.05107482,126.1,126.08,7.98712278]
[1741818183433,0.05107482,126.1,126.09,7.9322]
[1741818184434,0.05107482,126.1,126.08,7.98712278]
[1741818185433,0.05107482,126.1,126.08,0.05452278]
[1741818187030,0.05107482,126.1,126.09,7.9322]
[1741818196341,0.05107482,126.1,126.09,19.66827538]
[1741818197041,7.482e-05,126.1,126.09,19.66827538]
[1741818197245,11.73607538,126.17,126.16,7.9278]
[1741818198234,19.66217538,126.19,126.16,7.9278]
[1741818198438,0.0601999,126.18,126.16,7.9278]
[1741818198642,0.0601999,126.18,126.17,7.9272]
[1741818199547,0.0601999,126.18,126.15,11.78938701]
[1741818199747,11.79627528,126.18,126.15,0.05331163]
[1741818199944,7.9275,126.17,126.15,0.05331163]
[1741818202941,7.9870999,126.18,126.15,0.05331163]
[1741818203145,0.0601999,126.18,126.15,0.05331163]
[1741818203548,7.9272,126.17,126.15,0.05331163]
[1741818204450,7.9272,126.17,126.15,7.98171163]
[1741818204851,7.9272,126.17,126.15,0.05331163]
[1741818205950,7.9869999,126.18,126.15,0.05331163]
[1741818207548,0.0601999,126.18,126.16,7.9275]
[1741818208044,0.0601999,126.18,126.17,7.9272]
[1741818208250,0.0601999,126.18,126.17,38.1072]
[1741818208444,9.99e-05,126.18,126.17,38.1072]
[1741818208646,9.99e-05,126.18,126.17,56.43598654]
[1741818209555,10.91591745,126.26,126.17,56.42878654]
[1741818209754,10.91591745,126.26,126.2,18.32878654]
[1741818209956,10.91591745,126.26,126.22,7.9237]
[1741818209957,7.9223,126.25,126.22,7.9237]
[1741818210154,10.91591745,126.26,126.22,7.9237]
[1741818210354,10.91591745,126.26,126.21,30.18]
[1741818210550,20.42448654,126.28,126.21,30.18]
[1741818210858,0.05826362,126.25,126.22,0.05816568]
[1741818211045,0.05826362,126.25,126.22,7.98206568]
[1741818212158,7.98056362,126.25,126.22,0.05816568]
[1741818212353,0.05826362,126.25,126.22,0.05816568]
[1741818212555,7.9232,126.24,126.22,0.05816568]
[1741818213362,0.05826362,126.25,126.22,0.05816568]
[1741818213961,0.05826362,126.25,126.19,30.16]
[1741818214161,7.9246,126.22,126.19,30.16]
[1741818214454,18.32878654,126.26,126.19,30.16]
[1741818215057,18.38599086,126.24,126.21,0.05567987]
[1741818215255,2.0481,126.23,126.21,0.05567987]
[1741818215459,9.9718,126.23,126.21,0.05567987]
[1741818216166,2.0481,126.23,126.21,0.05567987]
[1741818216365,7.9241,126.22,126.21,0.05567987]
[1741818216562,2.0481,126.23,126.21,0.05567987]
[1741818216760,9.9718,126.23,126.21,0.05567987]
[1741818217767,7.9241,126.22,126.21,0.05567987]
[1741818217962,2.0481,126.23,126.21,0.05567987]
[1741818218563,9.9719,126.23,126.21,0.05567987]
[1741818219262,2.0481,126.23,126.21,7.97977987]
[1741818219665,2.0481,126.23,126.21,0.05567987]
[1741818219961,9.9719,126.23,126.21,0.05567987]
[1741818220961,7.98020432,126.24,126.21,0.05567987]
[1741818221368,7.98020432,126.24,126.21,7.98007987]
[1741818222562,0.05720432,126.24,126.21,7.98007987]
[1741818223666,7.98030432,126.24,126.21,7.98007987]
[1741818225570,0.05720432,126.24,126.21,30.21567987]
[1741818226970,7.98030432,126.24,126.21,38.13997987]
[1741818229871,7.9235,126.23,126.21,38.13997987]
[1741818230370,7.98040432,126.24,126.21,38.13997987]
[1741818230675,0.05720432,126.24,126.22,7.9236]
[1741818231171,0.05720432,126.24,126.21,38.13997987]
[1741818231476,0.05720432,126.24,126.21,30.21567987]
[1741818231676,0.05720432,126.24,126.21,38.13997987]
[1741818232169,7.98030432,126.24,126.21,38.13987987]
[1741818233069,0.05720432,126.24,126.21,30.21567987]
[1741818233268,7.9237,126.23,126.21,30.21567987]
[1741818234774,0.05720432,126.24,126.21,30.21567987]
[1741818235073,7.98030432,126.24,126.21,38.13997987]
[1741818235876,7.98030432,126.24,126.21,30.21567987]
[1741818236173,0.05720432,126.24,126.22,7.924]
[1741818236374,0.05720432,126.24,126.22,11.71632101]
[1741818236574,11.71632101,126.3,126.27,7.9205]
[1741818236975,131.58107949,126.31,126.26,11.71632101]
[1741818237176,11.71632101,126.29,126.25,30.14]
[1741818237369,6.3339,126.32,126.25,30.14]
[1741818237568,11.71632101,126.28,126.25,38.0617]
[1741818237777,11.71632101,126.29,126.27,0.05140478]
[1741818238072,11.76995413,126.3,126.27,0.05140478]
[1741818238272,11.71632101,126.29,126.27,0.05140478]
[1741818238776,19.63632101,126.29,126.27,0.05140478]
[1741818238966,11.71632101,126.29,126.27,0.05140478]
[1741818239171,0.05363312,126.3,126.27,0.05140478]
[1741818239172,11.71632101,126.28,126.27,0.05140478]
[1741818239373,19.63662101,126.28,126.27,0.05140478]
[1741818240680,19.63632101,126.29,126.27,0.05140478]
[1741818241476,11.71632101,126.29,126.27,0.05140478]
[1741818241677,19.63662101,126.28,126.27,0.05140478]
[1741818249387,7.9228,126.24,126.21,30.14]
[1741818250287,19.63882101,126.25,126.22,7.9238]
[1741818250585,0.0511577,126.24,126.22,11.71632101]
[1741818250989,0.0511577,126.24,126.23,7.9234]
[1741818251183,0.0511577,126.24,126.21,41.91658806]
[1741818251685,0.0511577,126.24,126.22,7.9235]
[1741818251892,0.0511577,126.24,126.21,0.06026705]
[1741818252084,7.9743577,126.24,126.21,0.06026705]
[1741818252685,19.69067871,126.24,126.21,7.98466705]
[1741818253088,11.76747871,126.24,126.21,0.06026705]
[1741818253390,11.76747871,126.24,126.22,7.9238]
[1741818254091,19.69037871,126.24,126.22,7.9238]
[1741818254792,0.0511577,126.24,126.22,7.9238]
[1741818255290,0.0511577,126.24,126.23,7.9234]
[1741818255792,0.0511577,126.24,126.21,7.98456705]
[1741818255993,7.9742577,126.24,126.21,7.98456705]
[1741818256291,0.0511577,126.24,126.21,0.06026705]
[1741818256690,0.0511577,126.24,126.22,7.9237]
[1741818256886,0.0511577,126.24,126.21,0.06026705]
[1741818257292,0.0511577,126.24,126.22,7.9235]
[1741818258991,0.0511577,126.24,126.21,0.06026705]
[1741818259801,0.0511577,126.24,126.22,7.9236]
[1741818260000,0.0511577,126.24,126.21,0.06026705]
[1741818260300,0.0511577,126.24,126.23,7.9234]
[1741818266206,0.0511577,126.24,126.23,49.75972101]
[1741818268410,0.0511577,126.24,126.23,38.0434]
[1741818270106,7.9739577,126.24,126.22,7.924]
[1741818270410,7.9739577,126.24,126.21,0.06026705]
[1741818270803,19.69027871,126.24,126.21,7.98456705]
[1741818271208,7.9236,126.23,126.21,0.06026705]
[1741818272911,0.0511577,126.24,126.21,0.06026705]
[1741818273110,0.0511577,126.24,126.21,11.77658806]
[1741818273311,0.0511577,126.24,126.23,7.9234]
[1741818276813,0.0511577,126.24,126.22,11.71632101]
[1741818277113,5.77e-05,126.24,126.21,30.18026705]
[1741818277307,5.77e-05,126.24,126.23,11.71632101]
[1741818278010,5.77e-05,126.24,126.23,19.63972101]
[1741818281018,2.1034,126.31,126.23,11.71632101]
[1741818281218,11.71632101,126.29,126.24,41.83632101]
[1741818281515,19.63612101,126.29,126.26,7.9212]
[1741818282109,19.69698782,126.29,126.26,7.97378148]
[1741818282415,11.71632101,126.27,126.26,0.05258148]
[1741818282817,7.9231,126.24,126.21,7.9243]
[1741818283013,19.63942101,126.24,126.21,7.9243]
[1741818283614,19.63882101,126.25,126.22,7.9239]
[1741818284017,19.69181067,126.25,126.22,7.97437632]
[1741818284316,19.63922101,126.24,126.22,0.05047632]
[1741818284916,11.71632101,126.24,126.22,0.05047632]
[1741818285113,7.9234,126.23,126.22,0.05047632]
[1741818285416,11.71632101,126.23,126.17,49.05217428]
[1741818285617,19.64182101,126.2,126.17,11.00527428]
[1741818285919,11.71632101,126.18,126.17,11.00527428]
[1741818286514,0.05155655,126.19,126.17,11.00527428]
[1741818286720,11.76787756,126.19,126.16,0.05909454]
[1741818286915,11.76787756,126.19,126.16,7.98649454]
[1741818287116,0.05155655,126.19,126.16,0.05909454]
[1741818287818,0.05155655,126.19,126.16,7.98649454]
[1741818288018,0.05155655,126.19,126.16,0.05909454]
[1741818288217,0.05155655,126.19,126.17,11.71632101]
[1741818288416,0.05155655,126.19,126.17,41.83632101]
[1741818288620,0.05155655,126.19,126.17,30.12]
[1741818290512,0.05155655,126.19,126.18,7.9266]
[1741818308024,5.655e-05,126.19,126.18,26.24471164]
[1741818310126,2.1965,126.28,126.25,7.9219]
[1741818310326,11.71178921,126.26,126.22,30.12]
[1741818310532,11.71178921,126.26,126.18,2.1905]
[1741818310533,11.71178921,126.25,126.2,30.12]
[1741818310734,11.71178921,126.27,126.25,7.9218]
[1741818310933,2.1965,126.28,126.21,11.71178921]
[1741818311236,0.06005899,126.26,126.23,0.05548422]
[1741818311638,0.06005899,126.26,126.23,11.76727343]
[1741818311937,0.06005899,126.26,126.24,11.71178921]
[1741818312335,0.06005899,126.26,126.25,7.9222]
[1741818313134,0.06005899,126.26,126.24,7.9225]
[1741818313441,0.06005899,126.26,126.23,41.88727343]
[1741818314037,11.7718482,126.26,126.23,30.17548422]
[1741818314336,19.6937482,126.26,126.23,30.17548422]
[1741818314635,11.7718482,126.26,126.23,0.05548422]
[1741818314838,7.9228,126.24,126.23,0.05548422]
[1741818315039,19.63458921,126.24,126.23,0.05548422]
[1741818315337,11.7718482,126.26,126.23,0.05548422]
[1741818316134,11.7718482,126.26,126.24,7.9228]
[1741818316640,0.06005899,126.26,126.25,7.9222]
[1741818318140,0.06005899,126.26,126.23,30.17548422]
[1741818318341,11.71178921,126.25,126.23,0.05548422]
[1741818318545,11.71178921,126.24,126.23,0.05548422]
[1741818318739,19.63458921,126.24,126.23,0.05548422]
[1741818318941,11.71178921,126.25,126.23,0.05548422]
[1741818319239,11.71178921,126.24,126.23,0.05548422]
[1741818319943,7.9237,126.23,126.2,7.925]
[1741818320145,11.71178921,126.23,126.19,30.1]
[1741818320343,11.71178921,126.24,126.21,7.9242]
[1741818320546,11.71178921,126.24,126.19,41.81178921]
[1741818320743,13.74998921,126.25,126.19,41.81178921]
[1741818321046,0.05574811,126.23,126.22,7.9237]
[1741818321441,0.05574811,126.23,126.21,7.9244]
[1741818321647,0.05574811,126.23,126.2,0.05760359]
[1741818322048,0.05574811,126.23,126.21,7.9244]
[1741818323449,0.05574811,126.23,126.2,0.05760359]
[1741818323637,0.05574811,126.23,126.22,7.9241]
[1741818323838,0.05574811,126.23,126.2,0.05760359]
[1741818324642,0.05574811,126.23,126.21,7.9243]
[1741818324948,0.05574811,126.23,126.2,0.05760359]
[1741818325948,0.05574811,126.23,126.21,7.9247]
[1741818327045,0.05574811,126.23,126.22,7.9241]
[1741818329149,0.05574811,126.23,126.22,38.0241]
[1741818336252,4.811e-05,126.23,126.22,38.0241]
[1741818346253,11.71178921,126.32,126.22,49.73178921]
[1741818346453,11.71178921,126.32,126.27,11.71178921]
[1741818346657,11.71178921,126.32,126.3,7.9187]
[1741818346954,7.9184,126.31,126.28,30.1]
[1741818347359,7.97580503,126.31,126.28,38.07117015]
[1741818347653,11.71178921,126.3,126.28,0.05107015]
[1741818347959,7.9203,126.28,126.26,7.9215]
[1741818348654,7.9203,126.28,126.25,41.81178921]
[1741818348857,7.97352426,126.28,126.25,41.86727052]
[1741818349057,7.9211,126.27,126.25,0.05548131]
[1741818349661,11.76501347,126.28,126.25,0.05548131]
[1741818349856,7.9215,126.26,126.25,0.05548131]
[1741818350853,7.9215,126.26,126.22,41.79178921]
[1741818350854,7.9228,126.24,126.22,30.08]
[1741818351051,7.9228,126.24,126.21,19.63618921]
[1741818351260,7.9228,126.24,126.21,49.71618921]
[1741818351753,7.9228,126.24,126.21,38.0044]
[1741818351958,7.9238,126.23,126.21,30.08]
[1741818352158,7.9238,126.23,126.2,11.71178921]
[1741818352359,7.9238,126.23,126.19,41.79178921]
[1741818352563,7.9238,126.23,126.19,49.71738921]
[1741818352859,7.9242,126.22,126.19,49.71738921]
[1741818353064,13.83467452,126.24,126.19,49.71738921]
[1741818353767,7.9237,126.23,126.19,49.71738921]
[1741818353955,19.63548921,126.23,126.19,49.71738921]
[1741818354159,19.63548921,126.23,126.19,38.0056]
[1741818354361,11.71178921,126.2,126.15,41.79178921]
[1741818354861,0.06024226,126.19,126.18,7.9266]
[1741818356463,4.226e-05,126.19,126.18,19.63838921]
[1741818360466,2.0784,126.25,126.18,13.82658921]
[1741818360666,2.0784,126.25,126.21,11.71178921]
[1741818360869,2.0784,126.25,126.23,7.9231]
[1741818361373,2.0784,126.25,126.22,30.1]
[1741818361578,0.05046377,126.25,126.24,7.9228]
[1741818361775,0.05046377,126.25,126.24,19.63458921]
[1741818361972,6.377e-05,126.25,126.24,19.63458921]
[1741818364074,2.1451,126.33,126.24,19.63178921]
[1741818364279,2.1451,126.33,126.28,18.27951064]
[1741818364473,2.1451,126.33,126.29,30.1]
[1741818364680,10.99329716,126.34,126.3,18.27951064]
[1741818365176,3.19e-06,126.33,126.31,0.05041216]
[1741818365397,3.19e-06,126.33,126.32,48.37951064]
[1741818365572,2.059,126.37,126.35,7.9155]
[1741818365880,10.99329716,126.39,126.35,30.08]
[1741818366771,0.05549339,126.38,126.36,0.04999144]
[1741818367983,7.96969339,126.38,126.36,0.04999144]
[1741818368172,0.05549339,126.38,126.36,0.04999144]
[1741818368676,18.33500403,126.38,126.33,30.08]
[1741818368977,18.27951064,126.38,126.31,30.08]
[1741818369176,7.9158,126.36,126.31,30.08]
[1741818369377,2.0765,126.37,126.31,30.08]
[1741818369582,2.1878,126.35,126.31,30.08]
[1741818369777,2.24731152,126.35,126.33,0.05823543]
[1741818370871,0.05951152,126.35,126.33,0.05823543]
[1741818371467,7.97551152,126.35,126.33,0.05823543]
[1741818371673,0.05951152,126.35,126.33,0.05823543]
[1741818373080,0.05951152,126.35,126.33,7.97533543]
[1741818373280,0.05951152,126.35,126.33,0.05823543]
[1741818373577,0.05951152,126.35,126.33,7.97493543]
[1741818373777,0.05951152,126.35,126.33,0.05823543]
[1741818374378,7.9165,126.34,126.33,0.05823543]
[1741818374682,2.19,126.34,126.31,30.08]
[1741818375075,7.9175,126.33,126.31,30.08]
[1741818375576,7.9175,126.33,126.3,37.9787]
[1741818375774,7.9175,126.33,126.31,0.06011125]
[1741818376379,2.19,126.34,126.31,0.06011125]
[1741818376584,20.46951064,126.34,126.28,30.06]
[1741818376782,18.27951064,126.3,126.18,32.70768492]
[1741818377087,18.27951064,126.24,126.18,32.70768492]
[1741818377383,2.1025,126.23,126.18,32.70768492]
[1741818377575,7.97603432,126.22,126.18,32.70768492]
[1741818377778,0.05163432,126.22,126.18,32.70768492]
[1741818378184,10.00693432,126.22,126.18,32.70768492]
[1741818378583,10.00693432,126.22,126.15,30.28]
[1741818378779,0.05163432,126.22,126.17,29.30895646]
[1741818378985,0.05163432,126.22,126.18,30.36]
[1741818379278,0.05163432,126.22,126.19,29.30895646]
[1741818380385,0.05163432,126.22,126.21,7.9247]
[1741818380586,0.05163432,126.22,126.21,38.3047]
[1741818381084,0.05163432,126.22,126.21,67.61365646]
[1741818381880,3.432e-05,126.22,126.21,67.61365646]
[1741818382085,6.2944,126.29,126.25,7.9219]
[1741818382285,6.2944,126.29,126.25,30.34]
[1741818382484,2.1025,126.29,126.25,30.34]
[1741818382781,2.1025,126.29,126.26,7.9214]
[1741818383181,2.16267632,126.29,126.25,30.34]
[1741818383389,2.16267632,126.29,126.26,0.05273294]
[1741818384887,10.08257632,126.29,126.26,0.05273294]
[1741818385088,2.16267632,126.29,126.26,0.05273294]
[1741818386592,2.16267632,126.29,126.26,7.97423294]
[1741818386784,2.16267632,126.29,126.26,0.05273294]
[1741818387893,10.08267632,126.29,126.26,0.05273294]
[1741818388090,2.16267632,126.29,126.23,7.9234]
[1741818388290,2.1247,126.28,126.22,30.2]
[1741818388681,2.0075,126.27,126.22,30.2]
[1741818388891,7.9222,126.25,126.22,30.2]
[1741818389192,2.0075,126.27,126.23,7.9234]
[1741818389388,0.05314233,126.25,126.23,7.9234]
[1741818389590,0.05314233,126.25,126.22,30.2]
[1741818389789,0.05314233,126.25,126.24,7.9228]
[1741818390992,0.05314233,126.25,126.22,30.2]
[1741818392091,0.05314233,126.25,126.24,7.9228]
[1741818394394,4.233e-05,126.25,126.24,7.9228]
[1741818400197,4.233e-05,126.25,126.24,26.21304433]
[1741818401102,4.0023,126.31,126.24,18.29024433]
[1741818401301,4.0023,126.31,126.3,7.919]
[1741818401499,4.0023,126.31,126.28,30.38]
[1741818401901,11.9211,126.31,126.28,38.3]
[1741818402094,4.0023,126.31,126.28,30.38]
[1741818402303,4.05304738,126.31,126.28,30.4345414]
[1741818402500,7.9193,126.3,126.28,30.4345414]
[1741818402702,7.9193,126.3,126.28,0.0545414]
[1741818403302,4.05304738,126.31,126.29,7.9195]
[1741818404203,0.05074738,126.31,126.3,7.919]
[1741818404708,0.05074738,126.31,126.29,38.2394]
[1741818404908,0.05074738,126.31,126.29,30.32]
[1741818405303,0.05074738,126.31,126.28,0.0545414]
[1741818406409,7.9194,126.3,126.28,0.0545414]
[1741818407415,0.05074738,126.31,126.28,0.0545414]
[1741818407711,7.96944738,126.31,126.28,0.0545414]
[1741818407911,7.96944738,126.31,126.28,7.9748414]
[1741818408514,7.9192,126.3,126.28,0.0545414]
[1741818408711,0.05074738,126.31,126.28,0.0545414]
[1741818409714,0.05074738,126.31,126.3,7.919]
[1741818409908,0.05074738,126.31,126.3,38.199]
[1741818415214,4.738e-05,126.31,126.3,38.199]
[1741818415420,4.738e-05,126.31,126.3,56.48924433]
[1741818417217,4.738e-05,126.31,126.28,18.34478573]
[1741818417424,4.738e-05,126.31,126.28,0.0545414]
[1741818417923,4.738e-05,126.31,126.29,7.9195]
[1741818419022,4.738e-05,126.31,126.28,0.0545414]
[1741818420216,7.9194,126.3,126.28,0.0545414]
[1741818421022,7.91874738,126.31,126.28,7.9748414]
[1741818421218,4.738e-05,126.31,126.28,0.0545414]
[1741818421723,4.738e-05,126.31,126.29,7.9197]
[1741818423021,4.738e-05,126.31,126.28,7.9745414]
[1741818423422,7.91874738,126.31,126.28,7.9745414]
[1741818423624,4.738e-05,126.31,126.29,7.9197]
[1741818423922,4.738e-05,126.31,126.28,0.0545414]
[1741818424119,4.738e-05,126.31,126.3,7.919]
[1741818425327,4.738e-05,126.31,126.28,0.0545414]
[1741818425724,4.738e-05,126.31,126.29,7.9193]
[1741818426120,4.738e-05,126.31,126.28,0.0545414]
[1741818427626,4.738e-05,126.31,126.3,7.919]
[1741818428026,4.738e-05,126.31,126.28,0.0545414]
[1741818428227,7.91854738,126.31,126.29,7.9195]
[1741818428529,4.738e-05,126.31,126.28,0.0545414]
[1741818430532,4.738e-05,126.31,126.3,7.919]
[1741818433432,4.738e-05,126.31,126.29,7.9193]
[1741818433632,4.738e-05,126.31,126.28,0.0545414]
[1741818434930,4.738e-05,126.31,126.29,7.9194]
[1741818435331,4.738e-05,126.31,126.28,0.0545414]
[1741818435528,4.738e-05,126.31,126.28,7.9746414]
[1741818435733,4.738e-05,126.31,126.28,0.0545414]
[1741818436233,4.738e-05,126.31,126.29,7.9196]
[1741818436435,4.738e-05,126.31,126.28,0.0545414]
[1741818437329,7.91844738,126.31,126.29,7.9197]
[1741818437535,7.91844738,126.31,126.28,0.0545414]
[1741818437940,4.738e-05,126.31,126.3,7.919]
[1741818438238,4.738e-05,126.31,126.28,0.0545414]
[1741818438439,4.738e-05,126.31,126.3,7.919]
[1741818441144,4.738e-05,126.31,126.29,7.9194]
[1741818441437,4.738e-05,126.31,126.28,0.0545414]
[1741818441637,7.91874738,126.31,126.28,0.0545414]
[1741818442843,7.91874738,126.31,126.29,7.9196]
[1741818443241,7.91874738,126.31,126.28,0.0545414]
[1741818443442,7.91874738,126.31,126.28,7.9744414]
[1741818443943,4.738e-05,126.31,126.28,0.0545414]
[1741818444443,4.738e-05,126.31,126.29,7.9197]
[1741818445239,4.738e-05,126.31,126.28,0.0545414]
[1741818445945,4.738e-05,126.31,126.3,7.919]
[1741818446244,4.738e-05,126.31,126.28,0.0545414]
[1741818446442,4.738e-05,126.31,126.29,7.9193]
[1741818447947,7.91844738,126.31,126.29,7.9193]
[1741818448444,7.91844738,126.31,126.28,7.9745414]
[1741818448647,4.738e-05,126.31,126.28,7.9745414]
[1741818448850,7.9191,126.3,126.28,7.9745414]
[1741818449038,7.9191,126.3,126.28,0.0545414]
[1741818449342,4.738e-05,126.31,126.28,0.0545414]
[1741818449546,18.29024433,126.3,126.23,30.18]
[1741818449747,32.3806,126.29,126.21,92.10049089]
[1741818450747,0.05245305,126.26,126.24,0.05075651]
[1741818450942,0.05245305,126.26,126.25,7.9222]
[1741818452543,0.05245305,126.26,126.25,26.21244433]
[1741818452749,11.9782,126.32,126.25,18.29024433]
[1741818453253,4.0601,126.32,126.25,18.29024433]
[1741818453550,7.9184,126.31,126.28,7.9199]
[1741818453751,7.96881205,126.31,126.28,7.97330286]
[1741818455454,0.05041205,126.31,126.28,0.05340286]
[1741818455850,0.05041205,126.31,126.29,7.9191]
[1741818456449,0.05041205,126.31,126.28,7.97330286]
[1741818457148,7.96891205,126.31,126.28,7.97330286]
[1741818457349,7.96891205,126.31,126.28,0.05340286]
[1741818457648,7.9194,126.3,126.28,0.05340286]
[1741818457851,0.05041205,126.31,126.28,0.05340286]
[1741818458551,7.9197,126.29,126.28,0.05340286]
[1741818460047,7.9192,126.3,126.28,0.05340286]
[1741818460248,2.15941205,126.31,126.28,0.05340286]
[1741818460955,7.9191,126.3,126.28,0.05340286]
[1741818461754,7.9197,126.29,126.28,0.05340286]
[1741818463853,2.15941205,126.31,126.28,0.05340286]
[1741818464056,7.9194,126.3,126.28,0.05340286]
[1741818464253,2.15941205,126.31,126.28,0.05340286]
[1741818464552,7.9195,126.3,126.28,0.05340286]
[1741818464851,2.15941205,126.31,126.28,0.05340286]
[1741818465246,0.05041205,126.31,126.29,7.9197]
[1741818465553,0.05041205,126.31,126.28,0.05340286]
[1741818466150,7.9197,126.29,126.28,0.05340286]
[1741818469355,7.9193,126.3,126.28,0.05340286]
[1741818469856,7.9197,126.29,126.28,0.05340286]
[1741818471456,19.6278283,126.3,126.28,0.05340286]
[1741818472155,7.9197,126.29,126.28,0.05340286]
[1741818474059,7.9223,126.25,126.19,2.1954]
[1741818474257,41.7885283,126.3,126.19,2.1954]
[1741818474258,11.7085283,126.27,126.21,11.7085283]
[1741818474662,7.9218,126.26,126.21,11.7085283]
[1741818475363,0.05411572,126.25,126.22,7.97462781]
[1741818475563,0.05411572,126.25,126.22,0.05102781]
[1741818476058,0.05411572,126.25,126.24,7.9228]
[1741818479164,0.05411572,126.25,126.23,7.923]
[1741818480365,0.05411572,126.25,126.23,7.9228]
[1741818480967,0.05411572,126.25,126.22,7.97472781]
[1741818481168,0.05411572,126.25,126.22,0.05102781]
[1741818481466,11.76264402,126.25,126.22,0.05102781]
[1741818482268,11.76264402,126.25,126.23,7.9234]
[1741818483667,19.68514402,126.25,126.22,7.97472781]
[1741818484667,11.76264402,126.25,126.22,0.05102781]
[1741818484865,11.7085283,126.23,126.19,11.7085283]
[1741818485370,11.7085283,126.23,126.21,7.9244]
[1741818485967,19.68608897,126.23,126.21,7.9244]
[1741818486173,19.68608897,126.23,126.19,11.7085283]
[1741818486372,19.68608897,126.23,126.2,7.9248]
[1741818488075,7.925,126.21,126.18,7.9262]
[1741818488572,19.6335283,126.21,126.18,7.9262]
[1741818488773,11.7085283,126.19,126.13,11.7085283]
[1741818488974,11.7085283,126.19,126.13,41.8085283]
[1741818489173,0.05348504,126.17,126.13,41.8085283]
[1741818489374,0.05348504,126.17,126.15,7.9279]
[1741818489667,0.05348504,126.17,126.13,41.8085283]
[1741818489872,0.05348504,126.17,126.16,7.9278]
[1741818490580,15.8452283,126.22,126.2,7.9248]
[1741818490872,13.7857283,126.22,126.2,7.9248]
[1741818491274,13.7857283,126.22,126.18,11.7085283]
[1741818491663,0.05400135,126.21,126.19,0.05468107]
[1741818492077,0.05400135,126.21,126.2,7.9253]
[1741818493072,0.05400135,126.21,126.19,0.05468107]
[1741818493271,0.05400135,126.21,126.19,7.98038107]
[1741818494174,11.7085283,126.2,126.19,0.05468107]
[1741818494472,11.76252965,126.21,126.19,0.05468107]
[1741818495679,19.68722965,126.21,126.19,7.98058107]
[1741818496377,11.76252965,126.21,126.19,7.98058107]
[1741818496782,0.05400135,126.21,126.2,7.9253]
[1741818497280,0.05400135,126.21,126.19,0.05468107]
[1741818497578,0.05400135,126.21,126.19,7.98028107]
[1741818497779,0.05400135,126.21,126.19,0.05468107]
[1741818498179,0.05400135,126.21,126.19,7.98028107]
[1741818498976,0.05400135,126.21,126.2,19.6338283]
[1741818499880,0.05400135,126.21,126.2,7.9253]
[1741818501479,0.05400135,126.21,126.2,19.6338283]
[1741818501683,0.00088519,126.21,126.2,19.6338283]
[1741818525114,0.00088519,126.21,126.2,49.7138283]
[1741818529922,0.00088519,126.21,126.2,19.6338283]
[1741818530126,0.00088519,126.21,126.2,49.7138283]
[1741818535123,4.1972,126.28,126.2,41.7885283]
[1741818535326,4.1972,126.28,126.23,11.7085283]
[1741818535617,7.9215,126.27,126.23,11.7085283]
[1741818535919,4.1972,126.28,126.24,7.9225]
[1741818536219,7.9214,126.27,126.24,7.9225]
[1741818536421,0.06079631,126.27,126.25,0.05300945]
[1741818536624,11.76932461,126.27,126.25,0.05300945]
[1741818537515,19.69062461,126.27,126.25,0.05300945]
[1741818539323,7.9215,126.26,126.25,0.05300945]
[1741818539518,11.76932461,126.27,126.25,0.05300945]
[1741818539823,19.69072461,126.27,126.25,0.05300945]
[1741818540718,7.9215,126.26,126.25,0.05300945]
[1741818543326,19.69052461,126.27,126.25,0.05300945]
[1741818544328,7.9215,126.26,126.25,0.05300945]
[1741818545723,19.69062461,126.27,126.25,0.05300945]
[1741818546031,11.76932461,126.27,126.25,0.05300945]
[1741818546424,49.76932461,126.27,126.2,7.925]
[1741818546625,11.7085283,126.24,126.18,41.7885283]
[1741818546826,6.2056,126.23,126.18,41.7885283]
[1741818547028,6.2056,126.23,126.21,7.9244]